[Event "Late-Titled-Tuesday-Blitz-February-27-2024"]
[Site "Chess.com"]
[Date "2024.02.27"]
[Round "4"]
[White "alexrustemov"]
[Black "laziestwin"]
[Result "0-1"]
[WhiteElo "2792"]
[BlackElo "2606"]
[TimeControl "180+1"]
[EndTime "14:41:12 PST"]
[Termination "laziestwin won on time"]

1. d4 {[%clk 0:03:00.9]} 1... Nf6 {[%clk 0:02:57.6]} 2. c4 {[%clk 0:03:01.4]}
2... e6 {[%clk 0:02:57.6]} 3. Nf3 {[%clk 0:03:01.9]} 3... d5 {[%clk 0:02:57.4]}
4. Nc3 {[%clk 0:03:02.4]} 4... dxc4 {[%clk 0:02:57.3]} 5. Qa4+ {[%clk
0:02:57.5]} 5... Nbd7 {[%clk 0:02:52.2]} 6. Bf4 {[%clk 0:02:49.5]} 6... Be7
{[%clk 0:02:43.6]} 7. Qxc4 {[%clk 0:02:47.9]} 7... c5 {[%clk 0:02:32.6]} 8. e3
{[%clk 0:02:30.3]} 8... O-O {[%clk 0:02:29.7]} 9. Be2 {[%clk 0:02:29.3]} 9... a6
{[%clk 0:02:29.8]} 10. O-O {[%clk 0:02:13.2]} 10... b5 {[%clk 0:02:29.2]} 11.
Qb3 {[%clk 0:02:13.1]} 11... Bb7 {[%clk 0:02:27.2]} 12. Rfd1 {[%clk 0:02:12]}
12... cxd4 {[%clk 0:02:27.2]} 13. Rxd4 {[%clk 0:02:00.9]} 13... Qb6 {[%clk
0:02:22.5]} 14. Ne5 {[%clk 0:01:49.4]} 14... Nc5 {[%clk 0:01:57]} 15. Qd1 {[%clk
0:01:45.3]} 15... b4 {[%clk 0:01:51]} 16. Nb1 {[%clk 0:01:42.3]} 16... Rfd8
{[%clk 0:01:36.4]} 17. Nd2 {[%clk 0:01:41.8]} 17... a5 {[%clk 0:00:58.6]} 18.
Ndc4 {[%clk 0:01:40.2]} 18... Rxd4 {[%clk 0:00:43.1]} 19. Nxb6 {[%clk
0:01:35.4]} 19... Rxd1+ {[%clk 0:00:42.6]} 20. Rxd1 {[%clk 0:01:36.3]} 20... Rd8
{[%clk 0:00:41.6]} 21. Nec4 {[%clk 0:01:16.8]} 21... Ba6 {[%clk 0:00:27.4]} 22.
b3 {[%clk 0:01:05]} 22... Nd5 {[%clk 0:00:24.1]} 23. Bf3 {[%clk 0:00:32.7]}
23... Nxf4 {[%clk 0:00:14.9]} 24. Rxd8+ {[%clk 0:00:30.3]} 24... Bxd8 {[%clk
0:00:14.7]} 25. exf4 {[%clk 0:00:31]} 25... a4 {[%clk 0:00:15.3]} 26. Bd1 {[%clk
0:00:24.5]} 26... axb3 {[%clk 0:00:14.9]} 27. Bxb3 {[%clk 0:00:23.5]} 27... Bc7
{[%clk 0:00:14.2]} 28. g3 {[%clk 0:00:23.3]} 28... Kf8 {[%clk 0:00:12.6]} 29.
Kg2 {[%clk 0:00:14.9]} 29... Ke7 {[%clk 0:00:12.7]} 30. Kf3 {[%clk 0:00:15.2]}
30... Nd3 {[%clk 0:00:12]} 31. Ke3 {[%clk 0:00:13.9]} 31... Nc5 {[%clk
0:00:05.7]} 32. Kd4 {[%clk 0:00:13.7]} 32... Nb7 {[%clk 0:00:04.1]} 33. Na4
{[%clk 0:00:11.8]} 33... Bb5 {[%clk 0:00:01.8]} 34. Nc5 {[%clk 0:00:10.8]} 34...
Nd6 {[%clk 0:00:01.6]} 35. Ne5 {[%clk 0:00:07]} 35... Bb6 {[%clk 0:00:01.3]} 36.
g4 {[%clk 0:00:05.4]} 36... f6 {[%clk 0:00:01.4]} 37. Nc4 {[%clk 0:00:04.7]}
37... Nxc4 {[%clk 0:00:01.5]} 38. Bxc4 {[%clk 0:00:05.3]} 38... Bc6 {[%clk
0:00:02.3]} 39. Bb3 {[%clk 0:00:02.2]} 39... Kd6 {[%clk 0:00:02.9]} 40. Kc4
{[%clk 0:00:01.8]} 40... Bxc5 {[%clk 0:00:03.8]} 41. Bc2 {[%clk 0:00:02.1]}
41... Bd5+ {[%clk 0:00:04.5]} 42. Kb5 {[%clk 0:00:02.1]} 42... Bxa2 {[%clk
0:00:05.2]} 43. Bxh7 {[%clk 0:00:02.3]} 43... Bd5 {[%clk 0:00:05.6]} 44. Bc2
{[%clk 0:00:01.9]} 44... b3 {[%clk 0:00:06.2]} 45. Bb1 {[%clk 0:00:01.6]} 45...
Bxf2 {[%clk 0:00:06.2]} 46. h4 {[%clk 0:00:02.5]} 46... Be3 {[%clk 0:00:05.8]}
47. h5 {[%clk 0:00:03.4]} 47... Bxf4 {[%clk 0:00:06]} 48. Kb4 {[%clk 0:00:03.6]}
48... Be5 {[%clk 0:00:06.2]} 49. Ka3 {[%clk 0:00:03.7]} 49... b2 {[%clk
0:00:05.2]} 50. Kb4 {[%clk 0:00:02.4]} 50... Bd4 {[%clk 0:00:05.6]} 51. Ka3
{[%clk 0:00:02.3]} 51... Ke5 {[%clk 0:00:06.2]} 52. Kb4 {[%clk 0:00:02.5]} 52...
Be4 {[%clk 0:00:06.5]} 53. Kb3 {[%clk 0:00:01.6]} 53... Bxb1 {[%clk 0:00:06.2]}
54. Kc4 {[%clk 0:00:02.5]} 54... Be4 {[%clk 0:00:06.5]} 55. h6 {[%clk
0:00:03.4]} 55... b1=Q {[%clk 0:00:06.7]} 56. hxg7 {[%clk 0:00:03.6]} 56... Qc2+
{[%clk 0:00:07.2]} 57. Kb5 {[%clk 0:00:03.8]} 57... Bd3+ {[%clk 0:00:07.3]} 58.
Ka5 {[%clk 0:00:03.4]} 58... Qa2+ {[%clk 0:00:06.8]} 59. Kb4 {[%clk 0:00:03.5]}
59... Qb2+ {[%clk 0:00:07.2]} 0-1

[Event "Late-Titled-Tuesday-Blitz-February-27-2024"]
[Site "Chess.com"]
[Date "2024.02.27"]
[Round "4"]
[White "Zavgorodniy_Sergiy"]
[Black "Joachim100x"]
[Result "1-0"]
[WhiteElo "2628"]
[BlackElo "2436"]
[TimeControl "180+1"]
[EndTime "14:41:15 PST"]
[Termination "Zavgorodniy_Sergiy won by checkmate"]

1. d4 {[%clk 0:03:00.9]} 1... d5 {[%clk 0:02:59.3]} 2. c4 {[%clk 0:03:00.9]}
2... e6 {[%clk 0:02:58.9]} 3. Nf3 {[%clk 0:03:00.7]} 3... Nf6 {[%clk 0:02:59.4]}
4. e3 {[%clk 0:03:00.7]} 4... c5 {[%clk 0:02:58.7]} 5. dxc5 {[%clk 0:03:00.5]}
5... Bxc5 {[%clk 0:02:58.1]} 6. a3 {[%clk 0:03:00.1]} 6... a5 {[%clk 0:02:57.9]}
7. Nc3 {[%clk 0:02:59.6]} 7... Nc6 {[%clk 0:02:57.6]} 8. cxd5 {[%clk 0:02:59.7]}
8... exd5 {[%clk 0:02:57.6]} 9. Be2 {[%clk 0:02:59.6]} 9... O-O {[%clk
0:02:57.3]} 10. Nb5 {[%clk 0:02:59.5]} 10... Be6 {[%clk 0:02:55]} 11. O-O {[%clk
0:02:58.9]} 11... Ne4 {[%clk 0:02:54.6]} 12. b3 {[%clk 0:02:58.4]} 12... Qb6
{[%clk 0:02:35]} 13. Bb2 {[%clk 0:02:55.9]} 13... Rac8 {[%clk 0:02:14.8]} 14.
Rc1 {[%clk 0:02:53.5]} 14... Rfd8 {[%clk 0:02:10.6]} 15. Nfd4 {[%clk 0:02:53.3]}
15... Nxd4 {[%clk 0:02:10.1]} 16. Nxd4 {[%clk 0:02:53]} 16... Bf8 {[%clk
0:02:04.1]} 17. Rxc8 {[%clk 0:02:47.8]} 17... Rxc8 {[%clk 0:02:03.8]} 18. Bg4
{[%clk 0:02:47.9]} 18... Bxg4 {[%clk 0:01:35.9]} 19. Qxg4 {[%clk 0:02:48.8]}
19... Rd8 {[%clk 0:01:35.9]} 20. Rd1 {[%clk 0:02:46.2]} 20... Qf6 {[%clk
0:01:17.7]} 21. Qf3 {[%clk 0:02:34.3]} 21... Qb6 {[%clk 0:01:01.3]} 22. h3
{[%clk 0:02:28.4]} 22... Rc8 {[%clk 0:00:57.2]} 23. Qg4 {[%clk 0:02:27.2]} 23...
Rd8 {[%clk 0:00:54.2]} 24. Nf5 {[%clk 0:02:21.5]} 24... Qg6 {[%clk 0:00:50.4]}
25. Qxg6 {[%clk 0:02:15.3]} 25... hxg6 {[%clk 0:00:50]} 26. Nd4 {[%clk
0:02:15.6]} 26... Rc8 {[%clk 0:00:49.8]} 27. f3 {[%clk 0:02:11.9]} 27... Nf6
{[%clk 0:00:47.9]} 28. Kf2 {[%clk 0:02:10.5]} 28... Bd6 {[%clk 0:00:45.2]} 29.
Ke2 {[%clk 0:02:08]} 29... Kf8 {[%clk 0:00:45.1]} 30. Kd3 {[%clk 0:02:04.2]}
30... Ke7 {[%clk 0:00:44.7]} 31. Nb5 {[%clk 0:02:01.9]} 31... Ke6 {[%clk
0:00:44.1]} 32. Nxd6 {[%clk 0:01:58.1]} 32... Kxd6 {[%clk 0:00:44.3]} 33. Bxf6
{[%clk 0:01:53.1]} 33... gxf6 {[%clk 0:00:43.4]} 34. h4 {[%clk 0:01:52.5]} 34...
b5 {[%clk 0:00:40.8]} 35. Ra1 {[%clk 0:01:40.8]} 35... Rh8 {[%clk 0:00:37.2]}
36. g3 {[%clk 0:01:34.7]} 36... Rc8 {[%clk 0:00:36.6]} 37. g4 {[%clk 0:01:24.3]}
37... b4 {[%clk 0:00:34]} 38. axb4 {[%clk 0:01:22.9]} 38... axb4 {[%clk
0:00:34.1]} 39. Kd4 {[%clk 0:01:21.4]} 39... Rc3 {[%clk 0:00:32.5]} 40. Ra6+
{[%clk 0:01:20.9]} 40... Ke7 {[%clk 0:00:32.2]} 41. Ra7+ {[%clk 0:01:15.2]}
41... Kf8 {[%clk 0:00:31.6]} 42. Rd7 {[%clk 0:01:06.8]} 42... Rxb3 {[%clk
0:00:29.9]} 43. Rxd5 {[%clk 0:01:06.9]} 43... Rb1 {[%clk 0:00:30.3]} 44. Rd8+
{[%clk 0:01:04.2]} 44... Kg7 {[%clk 0:00:30]} 45. Rb8 {[%clk 0:01:04.5]} 45...
b3 {[%clk 0:00:30.2]} 46. Ke4 {[%clk 0:01:05.1]} 46... b2 {[%clk 0:00:30.1]} 47.
Kf4 {[%clk 0:01:05.5]} 47... Kh7 {[%clk 0:00:28.7]} 48. e4 {[%clk 0:01:05.2]}
48... Kg7 {[%clk 0:00:28.6]} 49. Rb7 {[%clk 0:01:05.1]} 49... Kg8 {[%clk
0:00:27.2]} 50. h5 {[%clk 0:01:04.8]} 50... Kg7 {[%clk 0:00:23.6]} 51. hxg6
{[%clk 0:01:04]} 51... Kxg6 {[%clk 0:00:23.9]} 52. Rb6 {[%clk 0:01:03.8]} 52...
Kg7 {[%clk 0:00:23.4]} 53. Rb5 {[%clk 0:01:01.3]} 53... Kg6 {[%clk 0:00:23]} 54.
Rb3 {[%clk 0:01:01.6]} 54... Kg7 {[%clk 0:00:22.8]} 55. Rb8 {[%clk 0:00:55.7]}
55... Kg6 {[%clk 0:00:20.4]} 56. Rb4 {[%clk 0:00:53.3]} 56... Kg7 {[%clk
0:00:20.5]} 57. Rb6 {[%clk 0:00:52.4]} 57... Rc1 {[%clk 0:00:07.1]} 58. Rxb2
{[%clk 0:00:51.8]} 58... Rc5 {[%clk 0:00:07.7]} 59. Rb6 {[%clk 0:00:50.6]} 59...
Ra5 {[%clk 0:00:07.8]} 60. Rd6 {[%clk 0:00:50.3]} 60... Rc5 {[%clk 0:00:07.7]}
61. Rd5 {[%clk 0:00:50.6]} 61... Rc3 {[%clk 0:00:08]} 62. Rd4 {[%clk 0:00:49.8]}
62... Rc6 {[%clk 0:00:04.9]} 63. Kf5 {[%clk 0:00:47.2]} 63... Ra6 {[%clk
0:00:05]} 64. Rd5 {[%clk 0:00:44]} 64... Rb6 {[%clk 0:00:05.2]} 65. Rc5 {[%clk
0:00:43.6]} 65... Ra6 {[%clk 0:00:05.5]} 66. f4 {[%clk 0:00:41.9]} 66... Rb6
{[%clk 0:00:04.3]} 67. Ra5 {[%clk 0:00:42.2]} 67... Rc6 {[%clk 0:00:03.3]} 68.
Rb5 {[%clk 0:00:42.5]} 68... Ra6 {[%clk 0:00:03.3]} 69. Rd5 {[%clk 0:00:42]}
69... Rc6 {[%clk 0:00:03.3]} 70. g5 {[%clk 0:00:42.5]} 70... fxg5 {[%clk
0:00:03.4]} 71. Kxg5 {[%clk 0:00:43.4]} 71... Rb6 {[%clk 0:00:03.2]} 72. e5
{[%clk 0:00:40.5]} 72... Rc6 {[%clk 0:00:03.8]} 73. f5 {[%clk 0:00:39.7]} 73...
f6+ {[%clk 0:00:04.1]} 74. exf6+ {[%clk 0:00:39.6]} 74... Rxf6 {[%clk
0:00:04.1]} 75. Rd7+ {[%clk 0:00:38.9]} 75... Rf7 {[%clk 0:00:04.8]} 76. f6+
{[%clk 0:00:39.1]} 76... Kf8 {[%clk 0:00:05]} 77. Rd8# {[%clk 0:00:38.6]} 1-0

[Event "Late-Titled-Tuesday-Blitz-February-27-2024"]
[Site "Chess.com"]
[Date "2024.02.27"]
[Round "4"]
[White "QuintilianoR"]
[Black "marcodobrikov"]
[Result "0-1"]
[WhiteElo "2745"]
[BlackElo "2590"]
[TimeControl "180+1"]
[EndTime "14:41:17 PST"]
[Termination "marcodobrikov won on time"]

1. Nf3 {[%clk 0:02:58.8]} 1... Nf6 {[%clk 0:02:58.4]} 2. g3 {[%clk 0:02:58.7]}
2... g6 {[%clk 0:02:58.4]} 3. Bg2 {[%clk 0:02:58.9]} 3... Bg7 {[%clk 0:02:59.3]}
4. O-O {[%clk 0:02:59.4]} 4... O-O {[%clk 0:02:59.9]} 5. c4 {[%clk 0:03:00.1]}
5... c5 {[%clk 0:02:59.9]} 6. Nc3 {[%clk 0:03:00.1]} 6... Nc6 {[%clk 0:02:59.9]}
7. d4 {[%clk 0:03:00.2]} 7... cxd4 {[%clk 0:02:54.4]} 8. Nxd4 {[%clk 0:03:01.1]}
8... Nxd4 {[%clk 0:02:20.7]} 9. Qxd4 {[%clk 0:03:00.1]} 9... d6 {[%clk
0:02:21.2]} 10. Qd3 {[%clk 0:03:00.5]} 10... Bf5 {[%clk 0:02:17.2]} 11. e4
{[%clk 0:03:00.2]} 11... Be6 {[%clk 0:02:17.6]} 12. Bd2 {[%clk 0:02:55.2]} 12...
Nd7 {[%clk 0:02:14.9]} 13. b3 {[%clk 0:02:53.9]} 13... Nc5 {[%clk 0:02:12.6]}
14. Qe2 {[%clk 0:02:53.7]} 14... a5 {[%clk 0:02:12.8]} 15. Rac1 {[%clk
0:02:53.4]} 15... Qb6 {[%clk 0:02:11.8]} 16. Nd5 {[%clk 0:02:49.3]} 16... Bxd5
{[%clk 0:02:11.7]} 17. exd5 {[%clk 0:02:50.2]} 17... Rfe8 {[%clk 0:02:06.2]} 18.
h4 {[%clk 0:02:50]} 18... Qa6 {[%clk 0:01:39.4]} 19. h5 {[%clk 0:02:43]} 19...
Rab8 {[%clk 0:01:39.8]} 20. h6 {[%clk 0:02:25.3]} 20... Bf6 {[%clk 0:01:39]} 21.
f4 {[%clk 0:02:18.2]} 21... b5 {[%clk 0:01:38.8]} 22. f5 {[%clk 0:02:17.5]}
22... bxc4 {[%clk 0:01:36.4]} 23. Rxc4 {[%clk 0:02:18.4]} 23... g5 {[%clk
0:01:31.6]} 24. Qh5 {[%clk 0:02:08.5]} 24... Nd7 {[%clk 0:01:06.5]} 25. Bxg5
{[%clk 0:02:02.1]} 25... Be5 {[%clk 0:01:06.7]} 26. Rg4 {[%clk 0:01:56.3]} 26...
Kf8 {[%clk 0:00:49.6]} 27. Bh4 {[%clk 0:01:45.4]} 27... Rb4 {[%clk 0:00:44.8]}
28. Rxb4 {[%clk 0:01:11.5]} 28... axb4 {[%clk 0:00:45.7]} 29. Qg4 {[%clk
0:01:11.7]} 29... Qa7+ {[%clk 0:00:33.3]} 30. Kh2 {[%clk 0:01:10.8]} 30... Qd4
{[%clk 0:00:33.3]} 31. Be4 {[%clk 0:00:53.9]} 31... Bf6 {[%clk 0:00:20.7]} 32.
Kh3 {[%clk 0:00:53.5]} 32... Ne5 {[%clk 0:00:18.7]} 33. Bxf6 {[%clk 0:00:53]}
33... exf6 {[%clk 0:00:16.9]} 34. Qg7+ {[%clk 0:00:51.6]} 34... Ke7 {[%clk
0:00:17.4]} 35. Bg2 {[%clk 0:00:48]} 35... Rc8 {[%clk 0:00:17.2]} 36. Rf4 {[%clk
0:00:45.7]} 36... Qe3 {[%clk 0:00:16.4]} 37. Rxb4 {[%clk 0:00:39.9]} 37... Rc2
{[%clk 0:00:10.5]} 38. Rb7+ {[%clk 0:00:39.7]} 38... Nd7 {[%clk 0:00:11.1]} 39.
Qg4 {[%clk 0:00:29.2]} 39... Qxh6+ {[%clk 0:00:08.5]} 40. Qh4 {[%clk 0:00:28.2]}
40... Qd2 {[%clk 0:00:08.3]} 41. Qe4+ {[%clk 0:00:25]} 41... Kd8 {[%clk
0:00:08.4]} 42. Ra7 {[%clk 0:00:20.5]} 42... Ne5 {[%clk 0:00:08.4]} 43. Ra8+
{[%clk 0:00:16.1]} 43... Ke7 {[%clk 0:00:08.8]} 44. Ra7+ {[%clk 0:00:15.1]}
44... Kf8 {[%clk 0:00:09.2]} 45. Ra4 {[%clk 0:00:14.3]} 45... Rb2 {[%clk
0:00:07.5]} 46. Rd4 {[%clk 0:00:14.3]} 46... Qh6+ {[%clk 0:00:06.7]} 47. Qh4
{[%clk 0:00:14.3]} 47... Qg7 {[%clk 0:00:06.7]} 48. Rb4 {[%clk 0:00:13.7]} 48...
Rxa2 {[%clk 0:00:06.5]} 49. Rb8+ {[%clk 0:00:13.9]} 49... Ke7 {[%clk 0:00:06.8]}
50. Rb7+ {[%clk 0:00:14.8]} 50... Kd8 {[%clk 0:00:06.5]} 51. Qb4 {[%clk
0:00:15.3]} 51... Qh6+ {[%clk 0:00:06.1]} 52. Qh4 {[%clk 0:00:14.8]} 52... Qg5
{[%clk 0:00:05.1]} 53. Qxg5 {[%clk 0:00:13.2]} 53... fxg5 {[%clk 0:00:06]} 54.
f6 {[%clk 0:00:13.3]} 54... g4+ {[%clk 0:00:05.6]} 55. Kh4 {[%clk 0:00:13.5]}
55... Rxg2 {[%clk 0:00:06]} 56. Rb8+ {[%clk 0:00:13.8]} 56... Kc7 {[%clk
0:00:05.6]} 57. Re8 {[%clk 0:00:13.8]} 57... h6 {[%clk 0:00:05.5]} 0-1

[Event "Late-Titled-Tuesday-Blitz-February-27-2024"]
[Site "Chess.com"]
[Date "2024.02.27"]
[Round "4"]
[White "Machidon"]
[Black "chessydotcom"]
[Result "1-0"]
[WhiteElo "2498"]
[BlackElo "2251"]
[TimeControl "180+1"]
[EndTime "14:41:17 PST"]
[Termination "Machidon won by resignation"]

1. d4 {[%clk 0:02:59.4]} 1... d5 {[%clk 0:02:59.5]} 2. c4 {[%clk 0:02:59.3]}
2... e6 {[%clk 0:02:59.5]} 3. Nc3 {[%clk 0:02:59.4]} 3... c5 {[%clk 0:02:59.5]}
4. cxd5 {[%clk 0:02:58.6]} 4... exd5 {[%clk 0:03:00.4]} 5. Nf3 {[%clk
0:02:58.3]} 5... Nc6 {[%clk 0:03:00.2]} 6. Bg5 {[%clk 0:02:58.4]} 6... f6 {[%clk
0:02:57.7]} 7. Be3 {[%clk 0:02:48]} 7... c4 {[%clk 0:02:56.7]} 8. g3 {[%clk
0:02:41]} 8... Be6 {[%clk 0:02:53.2]} 9. Bg2 {[%clk 0:02:40.4]} 9... Bb4 {[%clk
0:02:51.4]} 10. O-O {[%clk 0:02:38.7]} 10... Nge7 {[%clk 0:02:51.9]} 11. Bf4
{[%clk 0:01:57.4]} 11... O-O {[%clk 0:02:45.3]} 12. h4 {[%clk 0:01:57.3]} 12...
Nf5 {[%clk 0:02:31.3]} 13. Rc1 {[%clk 0:01:52.4]} 13... Qb6 {[%clk 0:02:24.6]}
14. e3 {[%clk 0:01:38.5]} 14... Rfe8 {[%clk 0:02:08.5]} 15. Nd2 {[%clk
0:01:33.5]} 15... Bxc3 {[%clk 0:01:57.9]} 16. bxc3 {[%clk 0:01:34.4]} 16... Qa5
{[%clk 0:01:54.5]} 17. Qc2 {[%clk 0:01:31.2]} 17... Rad8 {[%clk 0:01:36.7]} 18.
Rfe1 {[%clk 0:01:26.3]} 18... b5 {[%clk 0:01:26.2]} 19. e4 {[%clk 0:01:18.8]}
19... Nfe7 {[%clk 0:01:18.2]} 20. h5 {[%clk 0:01:14]} 20... b4 {[%clk
0:01:11.9]} 21. Nxc4 {[%clk 0:01:08.9]} 21... dxc4 {[%clk 0:01:06.4]} 22. d5
{[%clk 0:01:09.8]} 22... Bg4 {[%clk 0:00:53.3]} 23. dxc6 {[%clk 0:01:07.1]}
23... b3 {[%clk 0:00:39.2]} 24. axb3 {[%clk 0:01:06.1]} 24... Nxc6 {[%clk
0:00:37.2]} 25. h6 {[%clk 0:01:00.7]} 25... g6 {[%clk 0:00:26]} 26. bxc4 {[%clk
0:00:57]} 26... Be6 {[%clk 0:00:25.5]} 27. e5 {[%clk 0:00:55.6]} 27... Nxe5
{[%clk 0:00:23.4]} 28. Ra1 {[%clk 0:00:54.9]} 28... Qc7 {[%clk 0:00:22.3]} 29.
Reb1 {[%clk 0:00:50.3]} 29... Bxc4 {[%clk 0:00:20]} 30. Rb7 {[%clk 0:00:49.7]}
30... Qc5 {[%clk 0:00:19.5]} 31. Raxa7 {[%clk 0:00:46.2]} 31... Nf7 {[%clk
0:00:20.1]} 32. Kh2 {[%clk 0:00:41.2]} 32... Qh5+ {[%clk 0:00:19.5]} 33. Kg1
{[%clk 0:00:40.2]} 33... g5 {[%clk 0:00:18.9]} 34. Be3 {[%clk 0:00:38.6]} 34...
Qxh6 {[%clk 0:00:19.1]} 35. Qa4 {[%clk 0:00:36.1]} 35... Be6 {[%clk 0:00:18.2]}
36. Bf1 {[%clk 0:00:32.8]} 36... Qh5 {[%clk 0:00:18.5]} 37. Bc4 {[%clk
0:00:28.2]} 37... Rd1+ {[%clk 0:00:17.8]} 38. Bf1 {[%clk 0:00:26.8]} 38... Red8
{[%clk 0:00:17.5]} 39. Qa6 {[%clk 0:00:25.2]} 39... Rxf1+ {[%clk 0:00:17.2]} 40.
Qxf1 {[%clk 0:00:22.5]} 40... Bh3 {[%clk 0:00:17.3]} 41. Rxf7 {[%clk 0:00:20.8]}
41... Bxf1 {[%clk 0:00:16.9]} 42. Rg7+ {[%clk 0:00:19.8]} 42... Kh8 {[%clk
0:00:17.3]} 43. Rxh7+ {[%clk 0:00:18.7]} 43... Qxh7 {[%clk 0:00:18.2]} 44. Rxh7+
{[%clk 0:00:18.9]} 44... Kxh7 {[%clk 0:00:19.1]} 45. Kxf1 {[%clk 0:00:19.5]}
45... Rd3 {[%clk 0:00:19.2]} 46. Bd4 {[%clk 0:00:17.6]} 46... Rd1+ {[%clk
0:00:19.9]} 47. Ke2 {[%clk 0:00:17.7]} 47... Rb1 {[%clk 0:00:20.3]} 48. Bxf6
{[%clk 0:00:18]} 48... Kg6 {[%clk 0:00:20.6]} 49. Bd4 {[%clk 0:00:18.1]} 49...
Rb2+ {[%clk 0:00:21.1]} 50. Ke3 {[%clk 0:00:18.1]} 50... Kf5 {[%clk 0:00:21.7]}
51. f3 {[%clk 0:00:17.1]} 51... Rb3 {[%clk 0:00:21.2]} 52. g4+ {[%clk
0:00:17.1]} 52... Ke6 {[%clk 0:00:20.8]} 53. Ke4 {[%clk 0:00:17.2]} 53... Rb1
{[%clk 0:00:20.5]} 54. Be3 {[%clk 0:00:14]} 54... Re1 {[%clk 0:00:21.1]} 55. c4
{[%clk 0:00:13.4]} 55... Kf6 {[%clk 0:00:18.8]} 56. c5 {[%clk 0:00:12.1]} 56...
Re2 {[%clk 0:00:18.8]} 57. c6 {[%clk 0:00:10.3]} 57... Rc2 {[%clk 0:00:18.7]}
58. Kd5 {[%clk 0:00:08.1]} 58... Rc3 {[%clk 0:00:16.3]} 59. Bd4+ {[%clk
0:00:08]} 1-0

[Event "Late-Titled-Tuesday-Blitz-February-27-2024"]
[Site "Chess.com"]
[Date "2024.02.27"]
[Round "4"]
[White "Brahianzevich"]
[Black "HeinichessPY"]
[Result "1-0"]
[WhiteElo "2493"]
[BlackElo "2237"]
[TimeControl "180+1"]
[EndTime "14:41:20 PST"]
[Termination "Brahianzevich won by checkmate"]

1. e4 {[%clk 0:02:59.2]} 1... e6 {[%clk 0:02:58.6]} 2. d4 {[%clk 0:02:58.9]}
2... d5 {[%clk 0:02:58.2]} 3. Nc3 {[%clk 0:02:59.8]} 3... dxe4 {[%clk
0:02:55.5]} 4. Nxe4 {[%clk 0:03:00.7]} 4... Bd7 {[%clk 0:02:54.3]} 5. Nf3 {[%clk
0:03:00]} 5... Bc6 {[%clk 0:02:53.9]} 6. Bd3 {[%clk 0:03:00.1]} 6... Nd7 {[%clk
0:02:53.4]} 7. Qe2 {[%clk 0:02:59.5]} 7... Ngf6 {[%clk 0:02:52.8]} 8. Bg5 {[%clk
0:02:54.4]} 8... Be7 {[%clk 0:02:52.3]} 9. Nxf6+ {[%clk 0:02:53]} 9... Bxf6
{[%clk 0:02:50.2]} 10. Bxf6 {[%clk 0:02:52]} 10... Qxf6 {[%clk 0:02:47.7]} 11.
Be4 {[%clk 0:02:38.5]} 11... Bxe4 {[%clk 0:02:41.6]} 12. Qxe4 {[%clk 0:02:39.4]}
12... c6 {[%clk 0:02:36.7]} 13. O-O-O {[%clk 0:02:23.7]} 13... O-O {[%clk
0:02:26.7]} 14. h4 {[%clk 0:02:23.6]} 14... Rfd8 {[%clk 0:02:22.3]} 15. g4
{[%clk 0:02:14.8]} 15... Nb6 {[%clk 0:02:15]} 16. g5 {[%clk 0:02:07.2]} 16...
Qg6 {[%clk 0:02:13.4]} 17. Qg4 {[%clk 0:02:06.7]} 17... h5 {[%clk 0:02:05.4]}
18. Qg3 {[%clk 0:01:57.6]} 18... Qf5 {[%clk 0:01:52.1]} 19. Rhe1 {[%clk
0:01:51]} 19... Nd5 {[%clk 0:01:47.7]} 20. Kb1 {[%clk 0:01:34.7]} 20... g6
{[%clk 0:01:44.2]} 21. Re5 {[%clk 0:01:25.7]} 21... Qg4 {[%clk 0:01:35.5]} 22.
Qxg4 {[%clk 0:01:22.6]} 22... hxg4 {[%clk 0:01:36.1]} 23. Nh2 {[%clk 0:01:23.5]}
23... c5 {[%clk 0:01:30.1]} 24. Nxg4 {[%clk 0:01:21.5]} 24... cxd4 {[%clk
0:01:30.7]} 25. Rxd4 {[%clk 0:01:21.9]} 25... Rac8 {[%clk 0:01:26.9]} 26. c3
{[%clk 0:01:12.2]} 26... Kg7 {[%clk 0:01:26.5]} 27. Re2 {[%clk 0:01:03.3]} 27...
b5 {[%clk 0:01:08.7]} 28. Red2 {[%clk 0:00:59.9]} 28... Rh8 {[%clk 0:01:02.4]}
29. Ne5 {[%clk 0:00:40.5]} 29... Rc7 {[%clk 0:00:47.9]} 30. a4 {[%clk
0:00:35.8]} 30... a6 {[%clk 0:00:47.4]} 31. axb5 {[%clk 0:00:35]} 31... axb5
{[%clk 0:00:48.3]} 32. R2d3 {[%clk 0:00:33.8]} 32... Ra8 {[%clk 0:00:43.9]} 33.
Rf3 {[%clk 0:00:33.5]} 33... b4 {[%clk 0:00:36.3]} 34. c4 {[%clk 0:00:31.3]}
34... Nb6 {[%clk 0:00:30.9]} 35. b3 {[%clk 0:00:26.3]} 35... Ra3 {[%clk
0:00:30.8]} 36. Rd6 {[%clk 0:00:20.7]} 36... Nc8 {[%clk 0:00:25.9]} 37. Rd7
{[%clk 0:00:19.4]} 37... Rxd7 {[%clk 0:00:21.1]} 38. Nxd7 {[%clk 0:00:20.3]}
38... Nd6 {[%clk 0:00:21]} 39. c5 {[%clk 0:00:20.2]} 39... Nc4 {[%clk
0:00:15.8]} 40. Rd3 {[%clk 0:00:15.1]} 40... Na5 {[%clk 0:00:12.9]} 41. Kb2
{[%clk 0:00:14.3]} 41... Nc6 {[%clk 0:00:09.7]} 42. Nf6 {[%clk 0:00:12.6]} 42...
Ra5 {[%clk 0:00:09.5]} 43. Ne4 {[%clk 0:00:10.6]} 43... Ne5 {[%clk 0:00:07.7]}
44. Rd8 {[%clk 0:00:10.6]} 44... Ng4 {[%clk 0:00:04.2]} 45. f3 {[%clk
0:00:10.3]} 45... f5 {[%clk 0:00:04.7]} 46. Nd6 {[%clk 0:00:09.5]} 46... Ne5
{[%clk 0:00:04.2]} 47. Rc8 {[%clk 0:00:09.1]} 47... Nd7 {[%clk 0:00:03.8]} 48.
Rc7 {[%clk 0:00:09]} 48... Rxc5 {[%clk 0:00:03.9]} 49. Rxd7+ {[%clk 0:00:09.6]}
49... Kf8 {[%clk 0:00:04.2]} 50. Nc4 {[%clk 0:00:10]} 50... Rd5 {[%clk 0:00:04]}
51. Rxd5 {[%clk 0:00:10.3]} 51... exd5 {[%clk 0:00:04.9]} 52. Ne5 {[%clk
0:00:11]} 52... Kg7 {[%clk 0:00:03.3]} 53. Kc2 {[%clk 0:00:11.3]} 53... Kf8
{[%clk 0:00:02]} 54. Kd3 {[%clk 0:00:12.2]} 54... Ke7 {[%clk 0:00:02.4]} 55. Kd4
{[%clk 0:00:12.8]} 55... Ke6 {[%clk 0:00:03.3]} 56. Nxg6 {[%clk 0:00:13.2]}
56... f4 {[%clk 0:00:03.6]} 57. Nxf4+ {[%clk 0:00:14.1]} 57... Kf5 {[%clk
0:00:04.5]} 58. Nxd5 {[%clk 0:00:14.5]} 58... Kg6 {[%clk 0:00:04.2]} 59. Nxb4
{[%clk 0:00:15.4]} 59... Kf5 {[%clk 0:00:04.9]} 60. Nd5 {[%clk 0:00:15.9]} 60...
Ke6 {[%clk 0:00:05.5]} 61. Ke4 {[%clk 0:00:16.1]} 61... Kd6 {[%clk 0:00:06.4]}
62. f4 {[%clk 0:00:16.4]} 62... Ke6 {[%clk 0:00:07.3]} 63. f5+ {[%clk
0:00:16.9]} 63... Kf7 {[%clk 0:00:07.9]} 64. Ke5 {[%clk 0:00:17.5]} 64... Kg7
{[%clk 0:00:08.5]} 65. Ke6 {[%clk 0:00:18.2]} 65... Kf8 {[%clk 0:00:08.6]} 66.
Kf6 {[%clk 0:00:18.7]} 66... Kg8 {[%clk 0:00:08.1]} 67. Ke7 {[%clk 0:00:19.1]}
67... Kg7 {[%clk 0:00:08.5]} 68. f6+ {[%clk 0:00:19.7]} 68... Kh8 {[%clk
0:00:08.9]} 69. g6 {[%clk 0:00:19.8]} 69... Kg8 {[%clk 0:00:09.3]} 70. f7+
{[%clk 0:00:19.7]} 70... Kg7 {[%clk 0:00:10.2]} 71. f8=Q+ {[%clk 0:00:19.8]}
71... Kxg6 {[%clk 0:00:10.4]} 72. Qf6+ {[%clk 0:00:20.3]} 72... Kh5 {[%clk
0:00:11.3]} 73. Qg5# {[%clk 0:00:20.3]} 1-0